Workbook

Sheet Simul
B2: SIMULATEUR DE PAIE
B4: CISSS:
B5: Syndicat : | E5: Pourcentage syndicat: | G5: =IF($C$4="EST",HLOOKUP(C$5,syndicat!B6:F7,2,FALSE),IF($C$4="CENTRE",HLOOKUP($C$5,syndicat!G6:M7,2,FALSE),IF(C4="OUEST",HLOOKUP(C5,syndicat!N6:Y7,2,FALSE),""))) -> 
B6: Heures /jour: | E6: Heures /sem.: | G6: =C6*5 -> 0
B7: Taux horaire:
B8: Statut: | E8: Entente 4 jrs :
B12: Rémunération:
B13: Heures payées par période de 2 semaine | H13: =C7*E13 -> 0
B14: Heures de congés sans solde cotisables
B15: Prime d'ancienneté | G15: 5 | H15: =IF(E15="","",G15/G6*E15) -> 
B16: Prime Non-Chev. Quart | G16: =Impôts!P37 -> 0.02 | H16: =IF(E16="","",G16*$C$7*E16) -> 
B17: Prime Psy. | G17: 21.27 | H17: =IF(E17="","",G17/G6*E17) -> 
B18: Prime compensatoire (ent. 4/jrs) | G18: =IF(AND(C8="TC",G8="Oui"),(IF(C18>0,C18,"4,30%")),"") ->  | H18: =IF(E18="","",E18*C7*G18) -> 
B20: Primes de fin de semaine | G20: =Impôts!P32 -> 0.04 | H20: =IF(E20="","",((E20*$C$7)+IF($E$15>0,E20*5/$G$6,0))*G20) -> 
B21: Primes de soir | G21: =Impôts!P33 -> 0.04 | H21: =IF(E21="","",((E21*$C$7)+IF($E$15>0,E21*5/$G$6,0))*G21) -> 
B22: Primes de soir majorées | G22: =Impôts!R33 -> 0.08 | H22: =IF(E22="","",((E22*$C$7)+IF($E$15>0,E22*5/$G$6,0))*G22) -> 
A23: =IF(Simul!C23=Impôts!N34,1,IF(Simul!C23=Impôts!N35,2,IF(Simul!C23=Impôts!N36,3,0))) -> 0 | B23: Primes de nuit | G23: =IF(E23="","",IF(AND(C23="",E23<>0)," Case C ?",VLOOKUP(A23,Impôts!$O$34:$P$36,2))) ->  | H23: =IF(E23="","",((E23*$C$7)+IF($E$15>0,E23*5/$G$6,0))*G23) -> 
A24: =IF(Simul!C23=Impôts!N34,1,IF(Simul!C23=Impôts!N35,2,IF(Simul!C23=Impôts!N36,3,0))) -> 0 | B24: Primes de nuit majorées | G24: =IF(E24="","",IF(AND(C23="",E24<>0)," Case C ?",VLOOKUP(A24,Impôts!$Q$34:$R$36,2))) ->  | H24: =IF(E24="","",((E24*$C$7)+IF($E$15>0,E24*5/$G$6,0))*G24) -> 
B27: Autre prime à % | H27: =IF(E27="","",G27*$C$7*E27) -> 
B28: Autre prime à % | H28: =IF(E28="","",G28*$C$7*E28) -> 
B29: Autre prime à montant | H29: =G29 -> 0
A31: =IF(AND($C$8="TC",$E$13<>0,$E$14<>0),1,"") ->  | B31: Bénéfices marginaux maladie | G31: =IF(OR(C8="TC",C8=""),"",IF(C31="",VLOOKUP(C5,BM,2,FALSE),C31)) ->  | H31: =IF(G31<>"",SUM(H13,H16,H17)*G31,"") -> 
A32: =IF(AND($C$8="TC",$E$13<>0,$E$14<>0),1,"") ->  | B32: Bénéfices marginaux férié 5.7% | E32: =IF(AND($C$8="TP",E13<>0),E13,IF(A32=1,E13,"")) ->  | G32: =IF(OR($C$8="TC",$C$8=""),"",VLOOKUP($C$5,BM,3,FALSE)) ->  | H32: =IF(G32<>"",SUM($H$13,H16,H17)*G32,"") ->  | I32: =SUM(H31:H33) -> 0
A33: =IF(AND($C$8="TC",$E$13<>0,$E$14<>0),1,"") ->  | B33: Bénéfices marginaux psy. 2.2% | E33: =IF(AND($C$8="TP",E17<>0),E17,IF(AND(A33=1,E17<>0),E17,"")) ->  | G33: =IF(OR($C$8="TC",$C$8=""),"",IF(E17>0,VLOOKUP($C$5,BM,4,FALSE),"")) ->  | H33: =IF(G33<>"",SUM(H13,H16,H17)*G33,"") -> 
B35: Brut cotisable | H35: =IF(E14>0,(E14*C7)+H13,H13) -> 0
B37: Salaire Brut | E37: =IF(AND(G8="Oui",C8="TC",(E13+E14)<G6*2),E13+E14,IF(AND(C8="TC",(E13+E14)<>G6*2),"Vérifier les heures en TC",IF(AND(C8="TP",G8="Oui"),"Vérifier le statut",IF(AND(C8="",E13+E14<>0),"Vérifier le statut",IF(OR(G8="Non",G8=""),E13+E14,"Vérifier les heures"))))) -> 0 | H37: =SUM(H13:H34) -> 0
B39: Déductions | E39: Taux | G39: exemp.par paie
B40: RRQ | E40: =Impôts!N8 -> 0.064 | G40: =Impôts!N13 -> 134.615 | H40: =IF(H37=0,0,($H$37+I58-G40)*E40) -> 0
B41: Impôt Provincial | H41: =IFERROR(IF(C4="CENTRE",'IMPÔT CENTRE'!E54,Impôts!E54),0) -> 0
B42: Impôt fédéral | H42: =IFERROR(IF(C4="CENTRE",'IMPÔT CENTRE'!E31,Impôts!E31),0) -> 0
B43: RREGOP | E43: =Impôts!N21 -> 0.0939 | G43: =IFERROR(IF(C4="CENTRE",Impôts!B57*Impôts!B58/26/(G6*2)*IF(C37>0,C37,E37),Impôts!B57*Impôts!B58/Impôts!D1/(G6*2)*IF(C37>0,C37,E37)),0) -> 0 | H43: =IFERROR((H35-G43)*E43-IF(C4="CENTRE",'IMPÔT CENTRE'!D59,Impôts!D59),0) -> 0
B44: Assurance-emploi taux réduit | E44: =Impôts!N9 -> 0.0132 | H44: =H37*E44 -> 0
B45: Syndicat à pourcentage | C45: =IF($C$4="EST",HLOOKUP(C$5,syndicat!B6:F8,3,FALSE),IF($C$4="CENTRE",HLOOKUP($C$5,syndicat!G6:M8,3,FALSE),IF(C4="OUEST",HLOOKUP(C5,syndicat!N6:Y8,3,FALSE),""))) ->  | E45: =IFERROR(G5,0) ->  | H45: =IF(AND($C$45="non",$I$32=0),H13*$E$45,IF(I32>0,(H13+I32)*E45,IF(C45="oui",H37*E45,""))) -> 
B46: RQAP | E46: =Impôts!N10 -> 0.00494 | H46: =H37*E46 -> 0
B48: REER
B49: REER FTQ
B50: REER CSN
B52: Assurance collective: Base
B53: Option 1
B54: Option 2
B55: Option 3
B56: Option 4
B57: TVQ | H57: =ROUND(SUM(H52:H56)*0.09,2) -> 0
B58: Part Patronale:
B59: Stationnement
B60: Autres déductions
B61: Total des déductions | H61: =SUM(H40:H60) -> 0
B62: Salaire Net : | H62: =H37-H61 -> 0

Sheet Feuil1 (hidden)
A3: MP | B3: simul

Sheet Impôts
C1: Périodes de paie : | D1: 26
B3: Pour calculer Impôt fédéral
H4: Tableau fédéral
A5: 1 | B5: Rémunération brute | D5: =Simul!H37 -> 0
A6: 2 | B6: Regop | D6: =Simul!H43 -> 0 | G6: Revenu | I6: Taux | J6: Constante | M6: Déductions | O6: Maximum
B7: RRQ | D7: =D5*P8 -> 0 | P7: Cotisation RRQ divisée | R7: RRQ 2
B8: Syndicat | D8: =Simul!H45 ->  | G8: Imposable | I8: Fédéral | M8: RRQ | N8: =[1]Taux!J9 -> 0.064 | O8: =[1]Taux!$K$9 -> 4160 | P8: =[1]Taux!$L$9 -> 0.01 | Q8: =[1]Taux!$M$9 -> 5.4% | R8: =[1]Taux!$G$14 -> 0.04
B9: Reer | D9: =Simul!H48+Simul!H49+Simul!H50 -> 0 | G9: =[1]Taux!N19 -> 0 | H9: =[1]Taux!O19 -> 55867 | I9: =[1]Taux!P19 -> 0.15 | J9: =[1]Taux!Q19 -> 0 | M9: AE | N9: =[1]Taux!J10 -> 0.0132 | O9: =[1]Taux!$K$10 -> 834.24
A10: 3 | B10: Net ligne 1-2 | D10: =D5-SUM(D6:D9) -> 0 | G10: =[1]Taux!N20 -> 55867.01 | H10: =[1]Taux!O20 -> 111733 | I10: =[1]Taux!P20 -> 0.205 | J10: =[1]Taux!Q20 -> 3073 | M10: RQAP | N10: =[1]Taux!J11 -> 0.00494 | O10: =[1]Taux!$K$11 -> 464.36
A11: 4 | B11: Revenu imposable annuel | D11: =D10*D1 -> 0 | G11: =[1]Taux!N21 -> 111733.01 | H11: =[1]Taux!O21 -> 173205 | I11: =[1]Taux!P21 -> 0.26 | J11: =[1]Taux!Q21 -> 9218 | M11: Exemption féd. | N11: =[1]Taux!$J$12 -> 15705 | Q11: =[1]Taux!$L$12 -> 13521 | R11: =[1]Taux!$M$12 -> salaire > 235675
A12: 5 | B12: Déduction habitant zones | D12: 0 | G12: =[1]Taux!N22 -> 173205.01 | H12: =[1]Taux!O22 -> 246752 | I12: =[1]Taux!P22 -> 0.29 | J12: =[1]Taux!Q22 -> 14414 | M12: Exemption prov. | N12: =[1]Taux!$J$13 -> 18056
A13: 6 | B13: Revenu imposable année ligne 4 - L5 | D13: =D11-D12 -> 0 | G13: =[1]Taux!N23 -> 246752.01 | I13: =[1]Taux!P23 -> 0.33 | J13: =[1]Taux!Q23 -> 24284 | M13: Exemption RRQ | N13: =[1]Taux!$J$14 -> 134.615 | O13: =[1]Taux!$E$12 -> 3500
A14: 7 | B14: Multiplie montant L6 par taux Tableau 1 | D14: =E14*D13 -> 0 | E14: =IF(D13<=H9,I9,IF(AND(D13>=G10,D13<=H10),I10,IF(AND(D13>=G11,D13<=H11),I11,IF(AND(D13>=G12,D13<=H12),I12,IF(D13>=G13,I13,0))))) -> 0.15
A15: 8 | B15: Moins constante | D15: =E15 -> 0 | E15: =VLOOKUP(E14,I9:J13,2,FALSE) -> 0 | G15: Crédit pour emploi | J15: =[1]Taux!$Q$26 -> 1368
A16: 9 | B16: Imp Fédéral L7 - L8 | D16: =D14-D15 -> 0 | G16: Abbattement fédéral | I16: =[1]Taux!$P$27 -> 0.165 | M16: Formule CARRA
A17: 10 | B17: Moins crédits fédérals | M17: MGA | N17: =[1]Taux!$E$11 -> 68500
B18: Crédit personnel de base | D18: =IF(E14=I13,Q11,N11) -> 15705 | H18: Max | M18: Réduction | N18: =[1]Taux!$F$39 -> 0.0156
B19: RRQ | D19: =IF(E19>H19,H19,E19) -> 0 | E19: =F19*G19 -> 0 | F19: =IF(Simul!H40="",0,IF(K19>0,K19,0)) -> 0 | G19: =D1 -> 26 | H19: =O8 -> 4160 | I19: =H19/D1 -> 160 | K19: =IF(J19=H19,0,IF(Simul!H40+J19>H19,H19-J19,Simul!H40)) -> 0 | M19: Taux ====> | N19: Cotisation | O19: Exemption
B20: AE | D20: =IF(E20>H20,H20,E20) -> 0 | E20: =F20*G20 -> 0 | F20: =IF(Simul!H44="",0,IF(K20>0,K20,0)) -> 0 | G20: =D1 -> 26 | H20: =O9 -> 834.24 | I20: =H20/D1 -> 32.08615385 | K20: =IF(J20=H20,0,IF(Simul!H44+J20>H20,H20-J20,Simul!H44)) -> 0 | M20: RRPE | N20: =[1]Taux!$F$48 -> 0.1267 | O20: =[1]Taux!$E$45 -> 0.35
B21: RQAP | D21: =IF(E21>H21,H21,E21) -> 0 | E21: =F21*G21 -> 0 | F21: =IF(Simul!H46="",0,IF(K21>0,K21,0)) -> 0 | G21: =D1 -> 26 | H21: =O10 -> 464.36 | I21: =H21/D1 -> 17.86 | K21: =IF(J21=H21,0,IF(A35+J21>H21,H21-J21,A35)) -> 0 | M21: RREGOP | N21: =[1]Taux!$F$38 -> 0.0939 | O21: =[1]Taux!$E$35 -> 0.25
K22: =SUM(K19:K21)*D1 -> 0 | M22: RRAS | N22: =[1]Taux!$F$48 -> 0.1267 | O22: =[1]Taux!$E$45 -> 0.35
B23: Cr Canadian pour emploi | D23: =IF(D5<0,-E23,E23) -> 1368 | E23: =J15 -> 1368 | M23: RREGOP-CSST | N23: =[1]Taux!$F$38 -> 0.0939 | O23: =[1]Taux!$E$35 -> 0.25
A24: 10 | D24: =SUM(D18:D23)+IF(D5<0,K22,0) -> 17073 | M24: Aucun | N24: 0 | O24: 0
A25: 11 | B25: Multiplie L10 par taux impot le + bas | D25: 0.15
A26: 12 | B26: Total cr fédéral | D26: =D24*D25 -> 2560.95
A27: 13 | B27: Impot fédéral L9 - L12 | D27: =D16-D26 -> -2560.95
A28: 14 | B28: Moins abbat féd 16,5% de L13 | D28: =E28*D27 -> -422.55675 | E28: =I16 -> 0.165 | G28: Crédit REER
B29: Crédits fond des travailleurs | D29: =D1*E29*(IF(K29<I29,K29,I29)) -> 0 | E29: =J51 -> 0.15 | G29: =D1 -> 26 | H29: 5000 | I29: =H29/G29 -> 192.3076923 | K29: =Simul!H49+Simul!H50 -> 0
A30: 15 | B30: Total impot a payer L13 - L14 | D30: =D27-D28-D29 -> -2138.39325 | M30: Statut | N30: Primes
A31: 16 | B31: Diviser L15 par périodes de paie | D31: =D30/D1 -> -82.24589423 | E31: =IF(AND(D5>=0,D31<=0),0,IF(AND(D5<=0,D31>=0),0,D31)) -> 0 | M31: TC | P31: régulières | R31: majorées
M32: TP | N32: fds | P32: 0.04
B33: Calcul de Impôt provincial | N33: soir | P33: 0.04 | R33: 0.08
H34: Tableau provincial | N34: 0 - 5 ans | O34: 1 | P34: 0.11 | Q34: 1 | R34: 0.14
A35: =Simul!H37*Simul!E46 -> 0 | N35: 5 - 10 ans | O35: 2 | P35: 0.12 | Q35: 2 | R35: 0.15
A36: 14 | B36: Rémunération annuelle de base | D36: =D5*D1 -> 0 | G36: Revenu | I36: Taux | J36: Constante | N36: 10 ans et + | O36: 3 | P36: 0.14 | Q36: 3 | R36: 0.16
A37: 15 | B37: Crédit Impot provincial | G37: Imposable | I37: Provincial | N37: Non chev.quart | P37: 0.02
B38: Déduction pour emploi | D38: =IF(AND(D36>0,E38>J45),J45,IF(AND(D36<0,E38<-J45),-J45,E38)) -> 0 | E38: =D36*I45 -> 0 | G38: =[1]Taux!I19 -> 0 | H38: =[1]Taux!J19 -> 51780 | I38: =[1]Taux!K19 -> 0.14 | J38: =[1]Taux!L19 -> 0
B39: Regop | D39: =IF(Simul!H43="",0,IF(Simul!H43<>0,Simul!H43*D1)) -> FALSE | G39: =[1]Taux!I20 -> 51780.01 | H39: =[1]Taux!J20 -> 103545 | I39: =[1]Taux!K20 -> 0.19 | J39: =[1]Taux!L20 -> 2463
B40: RRQ | G40: =[1]Taux!I21 -> 103545.01 | H40: =[1]Taux!J21 -> 126000 | I40: =[1]Taux!K21 -> 0.24 | J40: =[1]Taux!L21 -> 7390 | N40: Ent4jrs | P40: B.M.
B41: AE + RQAP | G41: =[1]Taux!I22 -> 126000.01 | I41: =[1]Taux!K22 -> 0.2575 | J41: =[1]Taux!L22 -> 9489 | N41: Oui | P41: =IF(Simul!C5=Impôts!#REF!,6%,6.21%) -> 
B42: REER | D42: =(Simul!H48+Simul!H49+Simul!H50)*D1 -> 0 | N42: Non
A43: 15 | B43: Ass. Coll. Part patronale | D43: =(Simul!I58*D1) -> 0
A44: 16 | B44: Total | D44: =D36+D43-SUM(D37:D42) -> 0 | I44: Taux | J44: Maximum
A45: 17 | B45: Multiplier par 19% | G45: Crédit pour emploi | I45: =[1]Taux!$K$27 -> 0.0644 | J45: =[1]Taux!$L$27 -> 1380
A46: 18 | B46: Total des crédits | D46: =D44*D45 -> 0
B47: Impot à payer an L14 - L17 | D47: =E47*D44 -> 0 | E47: =IF(D44<=H38,I38,IF(AND(D44>=G39,D44<=H39),I39,IF(AND(D44>=G40,D44<=H40),I40,IF(D44>=G41,I41,I41)))) -> 0.14
B48: Constante d'impôt | D48: =E48 -> 0 | E48: =VLOOKUP(E47,I37:J42,2,FALSE) -> 0
A49: 19 | B49: Impôt personnel de base | D49: =N12 -> 18056
B50: Crédit perso X 14% | D50: =(D49*E50) -> 2527.84 | E50: 0.14 | G50: Max. déduc | I50: REER: | J50: Fédéral | K50: Provincial
B51: Crédit FTQ | D51: =IF(F51>=G51,G51,F51) -> 0 | E51: =K52 -> 0.15 | F51: =(Simul!H49*D1)*E51 -> 0 | G51: 750 | I51: CSN / FTQ | J51: =[1]Taux!$E$7 -> 0.15
B52: Crédit CSN | D52: =IF(F52>=G52,G52,F52) -> 0 | E52: =K53 -> 0.15 | F52: =(Simul!H50*D1)*E52 -> 0 | G52: 1000 | I52: FTQ | K52: =[1]Taux!$E$8 -> 0.15
A53: 20 | I53: CSN | K53: =[1]Taux!$F$7 -> 0.15
B54: Retenu impot période paie | D54: =(D47-D48-D50-D51-D52)/D1 -> -97.22461538 | E54: =IF(AND(D5>=0,D54<=0),0,IF(AND(D5<=0,D54>=0),0,D54)) -> 0
A57: MGA | B57: =N17 -> 68500
A58: Taux exemption | B58: =VLOOKUP(Simul!B43,Impôts!M20:O26,3) -> 0.25 | C58: Ex. Annuelle | D58: =B57*B58 -> 17125
A59: Réduction | B59: =N18 -> 0.0156 | C59: =B59*((B57/(Simul!G6*D1*2)*IF(Simul!C37>0,Simul!C37,Simul!E37)-Simul!H35)) ->  | D59: =IF(B58=0,0,IF(Simul!E37<0,IF(C59>0,0,C59),IF(C59<0,0,C59))) -> 
A62: Non Synd. | B62: 0

Sheet IMPÔT CENTRE
C1: Périodes de paie : | D1: 26
B3: Pour calculer Impôt fédéral
H4: Tableau fédéral
A5: 1 | B5: Rémunération brute | D5: =Simul!H37 -> 0
A6: 2 | B6: Regop | D6: =Simul!H43 -> 0 | G6: Revenu | I6: Taux | J6: Constante | M6: Déductions | O6: Maximum
B7: RRQ | D7: =D5*Impôts!P8 -> 0
B8: Syndicat | D8: =Simul!H45 ->  | G8: Imposable | I8: Fédéral | M8: RRQ | N8: =[1]Taux!J9 -> 0.064 | O8: =[1]Taux!$K$9 -> 4160
B9: Reer | D9: =Simul!H48+Simul!H49+Simul!H50 -> 0 | G9: =[1]Taux!N19 -> 0 | H9: =[1]Taux!O19 -> 55867 | I9: =[1]Taux!P19 -> 0.15 | J9: =[1]Taux!Q19 -> 0 | M9: AE | N9: =[1]Taux!J10 -> 0.0132 | O9: =[1]Taux!$K$10 -> 834.24
A10: 3 | B10: Net ligne 1-2 | D10: =D5-SUM(D6:D9) -> 0 | G10: =[1]Taux!N20 -> 55867.01 | H10: =[1]Taux!O20 -> 111733 | I10: =[1]Taux!P20 -> 0.205 | J10: =[1]Taux!Q20 -> 3073 | M10: RQAP | N10: =[1]Taux!J11 -> 0.00494 | O10: =[1]Taux!$K$11 -> 464.36
A11: 4 | B11: Revenu imposable annuel | D11: =D10*D1 -> 0 | G11: =[1]Taux!N21 -> 111733.01 | H11: =[1]Taux!O21 -> 173205 | I11: =[1]Taux!P21 -> 0.26 | J11: =[1]Taux!Q21 -> 9218 | M11: Exemption féd. | N11: =[1]Taux!$J$12 -> 15705
A12: 5 | B12: Déduction habitant zones | D12: 0 | G12: =[1]Taux!N22 -> 173205.01 | H12: =[1]Taux!O22 -> 246752 | I12: =[1]Taux!P22 -> 0.29 | J12: =[1]Taux!Q22 -> 14414 | M12: Exemption prov. | N12: =[1]Taux!$J$13 -> 18056
A13: 6 | B13: Revenu imposable année ligne 4 - L5 | D13: =D11-D12 -> 0 | G13: =[1]Taux!N23 -> 246752.01 | I13: =[1]Taux!P23 -> 0.33 | J13: =[1]Taux!Q23 -> 24284 | M13: Exemption RRQ | N13: =[1]Taux!$J$14 -> 134.615 | O13: =[1]Taux!$E$12 -> 3500
A14: 7 | B14: Multiplie montant L6 par taux Tableau 1 | D14: =E14*D13 -> 0 | E14: =IF(D13<=H9,I9,IF(AND(D13>=G10,D13<=H10),I10,IF(AND(D13>=G11,D13<=H11),I11,IF(AND(D13>=G12,D13<=H12),I12,IF(D13>=G13,I13,0))))) -> 0.15
A15: 8 | B15: Moins constante | D15: =E15 -> 0 | E15: =VLOOKUP(E14,I9:J13,2,FALSE) -> 0 | G15: Crédit pour emploi | J15: =[1]Taux!$Q$26 -> 1368
A16: 9 | B16: Imp Fédéral L7 - L8 | D16: =D14-D15 -> 0 | G16: Abbattement fédéral | I16: =[1]Taux!$P$27 -> 0.165 | M16: Formule CARRA
A17: 10 | B17: Moins crédits fédérals | M17: MGA | N17: =[1]Taux!$E$11 -> 68500
B18: Crédit personnel de base | D18: =IF(E14=I13,Q11,N11) -> 15705 | H18: Max | M18: Réduction | N18: =[1]Taux!$F$39 -> 0.0156
B19: RRQ | D19: =IF(E19>H19,H19,E19) -> 0 | E19: =F19*G19 -> 0 | F19: =IF(Simul!H40="",0,IF(K19>0,K19,0)) -> 0 | G19: =D1 -> 26 | H19: =O8 -> 4160 | I19: =H19/D1 -> 160 | K19: =IF(J19=H19,0,IF(Simul!H40+J19>H19,H19-J19,Simul!H40)) -> 0 | M19: Taux ====> | N19: Cotisation | O19: Exemption
B20: AE | D20: =IF(E20>H20,H20,E20) -> 0 | E20: =F20*G20 -> 0 | F20: =IF(Simul!H44="",0,IF(K20>0,K20,0)) -> 0 | G20: =D1 -> 26 | H20: =O9 -> 834.24 | I20: =H20/D1 -> 32.08615385 | K20: =IF(J20=H20,0,IF(Simul!H44+J20>H20,H20-J20,Simul!H44)) -> 0 | M20: RRPE | N20: =[1]Taux!$F$48 -> 0.1267 | O20: =[1]Taux!$E$45 -> 0.35
B21: RQAP | D21: =IF(E21>H21,H21,E21) -> 0 | E21: =F21*G21 -> 0 | F21: =IF(Simul!H46="",0,IF(K21>0,K21,0)) -> 0 | G21: =D1 -> 26 | H21: =O10 -> 464.36 | I21: =H21/D1 -> 17.86 | K21: =IF(J21=H21,0,IF(A35+J21>H21,H21-J21,A35)) -> 0 | M21: RREGOP | N21: =[1]Taux!$F$38 -> 0.0939 | O21: =[1]Taux!$E$35 -> 0.25
K22: =SUM(K19:K21)*D1 -> 0 | M22: RRAS | N22: =[1]Taux!$F$48 -> 0.1267 | O22: =[1]Taux!$E$45 -> 0.35
B23: Cr Canadian pour emploi | D23: =IF(D5<0,-E23,E23) -> 1368 | E23: =J15 -> 1368 | M23: RREGOP-CSST | N23: =[1]Taux!$F$38 -> 0.0939 | O23: =[1]Taux!$E$35 -> 0.25
A24: 10 | D24: =SUM(D18:D23)+IF(D5<0,K22,0) -> 17073 | M24: Aucun | N24: 0 | O24: 0
A25: 11 | B25: Multiplie L10 par taux impot le + bas | D25: 0.15
A26: 12 | B26: Total cr fédéral | D26: =D24*D25 -> 2560.95
A27: 13 | B27: Impot fédéral L9 - L12 | D27: =D16-D26 -> -2560.95
A28: 14 | B28: Moins abbat féd 16,5% de L13 | D28: =E28*D27 -> -422.55675 | E28: =I16 -> 0.165 | G28: Crédit REER
B29: Crédits fond des travailleurs | D29: =D1*E29*(IF(K29<I29,K29,I29)) -> 0 | E29: =J51 -> 0.15 | G29: =D1 -> 26 | H29: 5000 | I29: =H29/G29 -> 192.3076923 | K29: =Simul!H49+Simul!H50 -> 0
A30: 15 | B30: Total impot a payer L13 - L14 | D30: =D27-D28-D29 -> -2138.39325 | M30: Statut | N30: Primes
A31: 16 | B31: Diviser L15 par périodes de paie | D31: =D30/D1 -> -82.24589423 | E31: =IF(AND(D5>=0,D31<=0),0,IF(AND(D5<=0,D31>=0),0,D31)) -> 0 | M31: TC | P31: régulières | R31: majorées
M32: TP | N32: fds | P32: 0.04
B33: Calcul de Impôt provincial | N33: soir | P33: 0.04 | R33: 0.08
H34: Tableau provincial | N34: 0 - 5 ans | O34: 1 | P34: 0.11 | Q34: 1 | R34: 0.14
A35: =Simul!H37*Simul!E46 -> 0 | N35: 5 - 10 ans | O35: 2 | P35: 0.12 | Q35: 2 | R35: 0.15
A36: 14 | B36: Rémunération annuelle de base | D36: =(Simul!H37+Simul!I58)*D1 -> 0 | G36: Revenu | I36: Taux | J36: Constante | N36: 10 ans et + | O36: 3 | P36: 0.14 | Q36: 3 | R36: 0.16
A37: 15 | B37: Crédit Impot provincial | G37: Imposable | I37: Provincial | N37: Non chev.quart | P37: 0.02
B38: Déduction pour emploi | D38: =IF(AND(D36>0,E38>J45),J45,IF(AND(D36<0,E38<-J45),-J45,E38)) -> 0 | E38: =D36*I45 -> 0 | G38: =[1]Taux!I19 -> 0 | H38: =[1]Taux!J19 -> 51780 | I38: =[1]Taux!K19 -> 0.14 | J38: =[1]Taux!L19 -> 0
B39: Regop | D39: =IF(Simul!H43="",0,IF(Simul!H43<>0,Simul!H43*D1)) -> FALSE | G39: =[1]Taux!I20 -> 51780.01 | H39: =[1]Taux!J20 -> 103545 | I39: =[1]Taux!K20 -> 0.19 | J39: =[1]Taux!L20 -> 2463
B40: RRQ | G40: =[1]Taux!I21 -> 103545.01 | H40: =[1]Taux!J21 -> 126000 | I40: =[1]Taux!K21 -> 0.24 | J40: =[1]Taux!L21 -> 7390 | N40: Ent4jrs | P40: B.M.
B41: AE + RQAP | G41: =[1]Taux!I22 -> 126000.01 | I41: =[1]Taux!K22 -> 0.2575 | J41: =[1]Taux!L22 -> 9489 | N41: Oui | P41: =IF(Simul!C5=Impôts!#REF!,6%,6.21%) -> 
B42: REER | D42: =(Simul!H48+Simul!H49+Simul!H50)*D1 -> 0 | N42: Non
A43: 15 | B43: Ass. Coll. Part patronale | D43: =(Simul!I58*D1) -> 0
A44: 16 | B44: Total | D44: =D36+D43-SUM(D37:D42) -> 0 | I44: Taux | J44: Maximum
A45: 17 | B45: Multiplier par 20% | G45: Crédit pour emploi | I45: =[1]Taux!$K$27 -> 0.0644 | J45: =[1]Taux!$L$27 -> 1380
A46: 18 | B46: Total des crédits | D46: =D44*D45 -> 0
B47: Impot à payer an L14 - L17 | D47: =E47*D44 -> 0 | E47: =IF(D44<=H38,I38,IF(AND(D44>=G39,D44<=H39),I39,IF(AND(D44>=G40,D44<=H40),I40,IF(D44>=G41,I41,I41)))) -> 0.14
B48: Constante d'impôt | D48: =E48 -> 0 | E48: =VLOOKUP(E47,I37:J42,2,FALSE) -> 0
A49: 19 | B49: Impôt personnel de base | D49: =N12 -> 18056
B50: Crédit perso X 14% | D50: =(D49*E50) -> 2527.84 | E50: 0.14 | G50: Max. déduc | I50: REER: | J50: Fédéral | K50: Provincial
B51: Crédit FTQ | D51: =IF(F51>=G51,G51,F51) -> 0 | E51: =K52 -> 0.15 | F51: =(Simul!H49*D1)*E51 -> 0 | G51: 750 | I51: CSN / FTQ | J51: =[1]Taux!$E$7 -> 0.15
B52: Crédit CSN | D52: =IF(F52>=G52,G52,F52) -> 0 | E52: =K53 -> 0.15 | F52: =(Simul!H50*D1)*E52 -> 0 | G52: 1000 | I52: FTQ | K52: =[1]Taux!$E$8 -> 0.15
A53: 20 | I53: CSN | K53: =[1]Taux!$F$7 -> 0.15
B54: Retenu impot période paie | D54: =(D47-D48-D50-D51-D52)/D1 -> -97.22461538 | E54: =IF(AND(D5>=0,D54<=0),0,IF(AND(D5<=0,D54>=0),0,D54)) -> 0
A57: MGA | B57: =N17 -> 68500
A58: Taux exemption | B58: =VLOOKUP(Simul!B43,Impôts!M20:O26,3) -> 0.25 | C58: Ex. Annuelle | D58: =B57*B58 -> 17125
A59: Réduction | B59: =N18 -> 0.0156 | C59: =B59*((B57/(Simul!G6*D1*2)*IF(Simul!C37>0,Simul!C37,Simul!E37)-Simul!H35)) ->  | D59: =IF(B58=0,0,IF(Simul!E37<0,IF(C59>0,0,C59),IF(C59<0,0,C59))) -> 

Sheet syndicat
B3: EST | G3: CENTRE | N3: OUEST
A4: MONTÉRÉGIE EST | B4: CAT. 1 | C4: CAT. 2 | D4: CAT. 3 | E4: CAT. 4 | G4: CAT. 1 | H4: CAT. 2 | I4: CAT. 3 | J4: CAT. 4 | K4: CAT. 3 MTL | L4: CAT. 4 MTL | N4: CAT. 1 | O4: CAT. 2 | P4: CAT. 3 | Q4: CAT. 4 | R4: CAT. 1(Estrie) | S4: CAT. 2(Estrie) | T4: CAT. 3(Estrie) | U4: CAT. 4(Estrie) | V4: CAT. 1(Mtl) | W4: CAT. 3(Mtl) | X4: CAT. 4(Mtl)
A5: CODE SYNDICAT | B5: 191 | C5: 192 | D5: 193 | E5: 194 | G5: 221 | H5: 222 | I5: 823 | J5: 229 | L5: 238 | N5: 191 | O5: 192 | P5: 193 | Q5: 194 | R5: 156 et 161 | S5: 162 | T5: 162 | U5: 164 | V5: 198 | W5: 78 | X5: 498
A6: SYNDICAT | B6: FIQ | C6: CSN | D6: CSN | E6: APTS | F6: SNS | G6: FIQ | H6: CSN | I6: CSN | J6: APTS | K6: CSD | L6: SCFP | M6: SNS | N6: FIQ | O6: SCFP | P6: SCFP | Q6: APTS | R6: FIQ | S6: CSN | T6: CSN | U6: CSN | V6: CSQ | W6: CSQ | X6: CSQ | Y6: SNS
A7: TAUX | B7: 0.017 | C7: 0.017 | D7: 0.017 | E7: 0.016 | F7: 0 | G7: 0.0165 | H7: 0.0175 | I7: 0.0175 | J7: 0.016 | K7: 0.013 | L7: 0.0125 | M7: 0 | N7: 0.0185 | O7: 0.015 | P7: 0.015 | Q7: 0.016 | R7: 0.0185 | S7: 0.0185 | T7: 0.0185 | U7: 0.0185 | V7: 0.015 | W7: - | X7: 0.016 | Y7: 0
A8: se calcule sur primes | B8: oui | C8: non | D8: non | E8: non | F8: non | G8: oui | H8: non | I8: non | J8: non | K8: oui | L8: oui | M8: non | N8: oui | O8: oui | P8: oui | Q8: non | R8: oui | S8: non | T8: non | U8: non | V8: oui | W8: oui | X8: oui | Y8: non
A13: BM
A14: syndicat | B14: maladie | C14: férié | D14: psy | G14: Taux plein
A16: FIQ | B16: 0.04 | C16: 0.053 | D16: 0.02 | F16: FIQ | G16: 0.06
A17: CSN | B17: 0.0421 | C17: 0.057 | D17: 0.022 | F17: CSN | G17: 0.0621
A18: APTS | B18: 0.0421 | C18: 0.057 | D18: 0.022 | F18: APTS | G18: 0.0621
A19: APES | B19: 0.0421 | C19: 0.057 | D19: 0.022 | F19: APES | G19: 0.0621
A20: SCFP | B20: 0.0421 | C20: 0.057 | D20: 0.022 | F20: SCFP | G20: 0.0621
A21: SNS | B21: 0.0421 | C21: 0.057 | D21: 0.022 | F21: SNS | G21: 0.0621
A22: CADRE | B22: 0 | C22: 0.057 | D22: 0.022 | F22: CADRE | G22: 0
A23: CSD | B23: 0.0421 | C23: 0.057 | D23: 0.022 | F23: CSD | G23: 0.0621
A24: CSQ | B24: 0.0421 | C24: 0.057 | D24: 0.022 | F24: CSQ | G24: 0.0621
B28: CISSS
B29: EST
B30: CENTRE
B31: OUEST
B34: STATUT
B35: TC
B36: TP
B37: TC en PARTIEL SANS SOLDE
